Cogmind - Beta 14 @@@ ROGUE MODE // 2025.03.02 @ 22:03:26 Player: Bbenedict8 Result: Self-destructed Performance ------------- Evolutions (1) 500 Regions Visited (3) 600 Robots Destroyed (18) 90 Value Destroyed (417) 417 Prototype IDs (0) 0 Alien Tech Used (0) 0 Bonus (0) 0 TOTAL SCORE: 1607 Bonus ------- None Cogmind --------- Core Integrity 400/400 Matter 258/300 Energy 168/250 System Corruption 0% Temperature Cool (0) Movement Flying (34) Location -9/Materials Parts ------- > --- POWER (1) -------- Ion Engine > --- PROPULSION (3) --- Flight Unit Cesium-ion Thruster > --- UTILITY (3) ------ Small Storage Unit Advanced Weight Redist. System Signal Interpreter > --- WEAPON (2) ------- EM Pulse Gun Assault Rifle > --- INVENTORY (8) ---- Ion Engine Improved Heat Sink Hacking Suite Slug Cannon Grenade Launcher Grenade Launcher Hammer Peak State ------------ > --- POWER ------------ Ion Engine > --- PROPULSION ------- Flight Unit Cesium-ion Thruster > --- UTILITY ---------- Small Storage Unit Advanced Weight Redist. System Signal Interpreter > --- WEAPON ----------- EM Pulse Gun Slug Cannon > --- INVENTORY -------- Ion Engine Improved Heat Sink Assault Rifle Grenade Launcher Grenade Launcher Hammer [Rating: 15] Favorites ----------- Power Ion Engine Engine Ion Engine Propulsion Light Treads Treads Light Treads Flight Unit Cesium-ion Thruster Utility Small Storage Unit Device Improved Heat Sink Storage Small Storage Unit Processor Signal Interpreter Weapon EM Pulse Gun Energy Gun EM Pulse Gun Ballistic Gun Light Assault Rifle Ballistic Cannon Light Cannon Launcher Grenade Launcher Impact Weapon Hammer Build | -11 -10 -10 -9 ------- Run | Yrd Mat Min Mat Slots Evolved 2 | . . . 2 Power . | . . . . Propulsion 1 | . . . 1 Utility 1 | . . . 1 Weapon . | . . . . Parts Attached 27 | 6 9 9 3 Power 3 | 1 1 1 . Engine 3 | 1 1 1 . Core . | . . . . Reactor . | . . . . Propulsion 6 | 2 2 2 . Treads 4 | 2 2 . . Leg . | . . . . Wheel . | . . . . Hover . | . . . . Flight 2 | . . 2 . Utility 6 | 1 2 2 1 Device 4 | . 2 2 . Storage 1 | 1 . . . Processor 1 | . . . 1 Hackware . | . . . . Protection . | . . . . Artifact . | . . . . Weapon 12 | 2 4 4 2 Energy Gun 2 | 1 1 . . Energy Cannon . | . . . . Ballistic Gun 2 | 1 . . 1 Ballistic Cannon 2 | . . 1 1 Launcher 3 | . 1 2 . Special Weapon . | . . . . Impact Weapon 3 | . 2 1 . Slashing Weapon . | . . . . Piercing Weapon . | . . . . Special Melee Weapon . | . . . . Unidentified Prototypes . | . . . . Parts Lost . | . . . . Power . | . . . . Propulsion . | . . . . Utility . | . . . . Weapon . | . . . . Highest Loss Streak . | . . . . To Critical Strikes . | . . . . Average Slot Usage (%) 90 | . 94 86 88 Engine 13 | . 13 14 11 Treads 18 | . 27 10 . Flight 6 | . . 10 22 Device 12 | . 11 14 11 Storage 13 | . 14 14 11 Energy Gun 13 | . 13 14 11 Ballistic Gun 1 | . 3 . 6 Launcher 5 | . 2 7 4 Impact Weapon 3 | . 6 . . Peak Build Rating 15 | 6 9 12 15 Average Rating 9 | 4 8 9 13 On Entrance 6 | . 6 9 12 Naked Turns . | . . . . Heaviest Build 16 | 13 16 16 15 Greatest Support 49 | 40 40 49 18 Greatest Overweight (x) 1 | . . 1 . Average Overweight (x) . | . . . . Largest Inventory Capacity 8 | 8 8 8 8 Average Capacity 7 | 6 8 8 8 Most Carried 8 | 2 8 8 7 Average Carried 6 | 1 5 7 6 Final Capacity 8 | 8 8 8 8 Final Carried 8 | 2 8 7 7 Class Distribution -------------------- 100% | Mutant Dominant Class ---------------- Mutant | -10/Materials Mutant | -10/Mines Mutant | -9/Materials Resources | -11 -10 -10 -9 ----------- Run | Yrd Mat Min Mat Matter Collected 557 | 228 169 160 . Remotely . | . . . . Salvage Created 436 | . 370 48 18 Parts 33 | . 21 10 2 Haulers Intercepted 1 | . 1 . . Recyclers Shooed 1 | . 1 . . Parts Field Recycled . | . . . . Retrieved Matter . | . . . . Parts Self-Destructed . | . . . . Prevented . | . . . . Kills | -11 -10 -10 -9 ------- Run | Yrd Mat Min Mat Combat Hostiles Destroyed 12 | . 6 6 . Guns 5 | . 3 2 . AOE 7 | . 3 4 . Classes Destroyed 8 | . 6 1 1 Worker 1 | . 1 . . Hauler 1 | . 1 . . Recycler 1 | . 1 . . Mechanic 1 | . 1 . . Operator 1 | . . . 1 Watcher 1 | . 1 . . Swarmer 6 | . . 6 . Grunt 6 | . 6 . . Best Kill Streak 5 | . 5 3 1 Combat Bots Only 4 | . 4 3 . Max Kills in Single Turn 3 | . 1 3 1 Gunslinging . | . . . . Exploded 3 | . 1 3 . Melee . | . . . . Uniques/NPCs Destroyed . | . . . . Combat | -11 -10 -10 -9 -------- Run | Yrd Mat Min Mat Hostile Shots Fired 26 | . 19 7 . Missed 6 | . 3 3 . Damage Taken 373 | . 340 33 . Core 94 | . 94 . . Absorbed by Shields . | . . . . Core Remaining (%) 81 | 100 . 62 . Volleys Fired 41 | . 31 6 4 Largest 2 | . 2 2 2 Hottest 70 | . 70 70 60 Shots Fired 60 | . 42 10 8 Gun 49 | . 35 6 8 Cannon . | . . . . Launcher 11 | . 7 4 . Special . | . . . . Kinetic 11 | . 7 . 4 Thermal . | . . . . Explosive 11 | . 7 4 . Electromagnetic 38 | . 28 6 4 Robot Hit Streak 12 | . 6 12 2 Robot Miss Streak 3 | . 3 . 3 Penetration Max . | . . . . Secondary Targets . | . . . . Shots Hit Robots 32 | . 23 6 3 Core Hits 31 | . 21 8 2 Critical Kills . | . . . . Critical Parts Destroyed . | . . . . Critical Strikes . | . . . . Melee Attacks 4 | . 4 . . Impact 4 | . 4 . . Slashing . | . . . . Piercing . | . . . . Sneak Attacks 2 | . 2 . . Combat Hostiles . | . . . . Follow-up Attacks . | . . . . Damage Inflicted 1191 | . 860 286 45 Guns 356 | . 255 56 45 Cannons . | . . . . Explosions 666 | . 436 230 . Melee 169 | . 169 . . Ramming . | . . . . Kinetic 45 | . 18 . 27 Thermal 72 | . 47 25 . Explosive 594 | . 389 205 . Electromagnetic 311 | . 237 56 18 Impact 169 | . 169 . . Slashing . | . . . . Piercing . | . . . . Highest Corruption . | . . . . Average Corruption . | . . . . Corruption Purged . | . . . . Corruption Blocked . | . . . . Overload Shots . | . . . . Overflow Damage 39 | . 17 22 . Projectiles . | . . . . Explosions 22 | . . 22 . Melee 17 | . 17 . . Knockbacks 1 | . 1 . . Impact 1 | . 1 . . Kinetic . | . . . . Secondary . | . . . . Self-Inflicted Damage 122 | . 122 . . Shots 6 | . 6 . . Rammed . | . . . . Targets Rammed . | . . . . Kicked . | . . . . Crushed . | . . . . Highest Temperature 58 | . 58 36 1 Average Temperature 23 | . 31 14 1 Received Heat Transfer 129 | . 129 . . Siege Activations . | . . . . Robots Corrupted 1 | . 1 . . Combat Hostiles . | . . . . Parts Fried 2 | . 2 . . Impact Corruptions 2 | . 2 . . Robots Melted . | . . . . Combat Hostiles . | . . . . Parts Melted . | . . . . Heat Transferred 100 | . 50 50 . Parts Sabotaged . | . . . . Parts Stolen . | . . . . Parts Stripped . | . . . . Power Chain Reactions 2 | . 1 1 . Alert | -11 -10 -10 -9 ------- Run | Yrd Mat Min Mat Peak Influence 251 | . 251 193 75 Initial 97 | . . 97 32 Average 96 | . 85 122 48 Maximum Alert Level 1 | . 1 . . Low Security (%) 96 | 100 91 100 100 Level 1 3 | . 8 . . Level 2 . | . . . . Level 3 . | . . . . Level 4 . | . . . . Level 5 . | . . . . High Security . | . . . . Max Security . | . . . . Squads Dispatched 2 | . . 1 1 Investigation 1 | . . 1 . Extermination . | . . . . Reinforcement 1 | . . . 1 Assault . | . . . . Garrison . | . . . . Intercept . | . . . . Searches Triggered . | . . . . Construction Impeded . | . . . . Haulers Reinforced . | . . . . Active Scanning Responses . | . . . . Cargo Convoy Interrupts . | . . . . Stealth | -11 -10 -10 -9 --------- Run | Yrd Mat Min Mat Distress Signals 1 | . . . 1 Communications Jammed . | . . . . Distress Signals . | . . . . Times Spotted 17 | . 12 3 2 Peak Tracking Total 5 | . 5 3 2 Tactical Retreats . | . . . . Traps | -11 -10 -10 -9 ------- Run | Yrd Mat Min Mat Traps Triggered 2 | . 2 . . Indirectly . | . . . . Trap Hack Attempts . | . . . . Triggered . | . . . . Disarmed . | . . . . Reprogrammed . | . . . . Reused . | . . . . Traps Extracted . | . . . . Installed . | . . . . Triggered . | . . . . Machines | -11 -10 -10 -9 ---------- Run | Yrd Mat Min Mat Machines Disabled 7 | . 5 2 . Max in Single Turn 3 | . 3 2 . Machines Repaired . | . . . . Machines Dismantled . | . . . . Machines Sabotaged . | . . . . Overloaded Fab Kills . | . . . . Hacking | -11 -10 -10 -9 --------- Run | Yrd Mat Min Mat Machines Accessed 4 | . 1 1 2 Terminals 3 | . 1 . 2 Fabricators . | . . . . Repair Stations . | . . . . Recycling Units . | . . . . Scanalyzers . | . . . . Garrison Access . | . . . . Total Hacks 8 | . 2 1 5 Successful 3 | . 1 1 1 Failed 5 | . 1 . 4 Catastrophic 2 | . . . 2 Database Lockouts . | . . . . Manual 7 | . . . 7 Terminals 7 | . 2 . 5 Fabricators . | . . . . Repair Stations . | . . . . Recycling Units . | . . . . Scanalyzers . | . . . . Garrison Access . | . . . . Terminal Hacks 3 | . 1 1 1 Robot Analysis 1 | . 1 . . Open Door 1 | . . 1 . Branch Access Points 1 | . . . 1 Fabricator Hacks . | . . . . Repair Station Hacks . | . . . . Recycling Unit Hacks . | . . . . Scanalyzer . | . . . . Garrison Access Hacks . | . . . . Unauthorized Hacks . | . . . . Terminals . | . . . . Fabricators . | . . . . Repair Stations . | . . . . Recycling Units . | . . . . Scanalyzers . | . . . . Garrison Access . | . . . . Data Cores Recovered . | . . . . Used . | . . . . Hacking Detections 3 | . 1 . 2 Full Trace Events 1 | . . . 1 Feedback Events . | . . . . Feedback Blocked . | . . . . Robot Schematics Acquired . | . . . . Robots Built . | . . . . Authchips . | . . . . Time . | . . . . Total Robot Build Rating . | . . . . Part Schematics Acquired . | . . . . Parts Built . | . . . . Authchips . | . . . . Time . | . . . . Total Part Build Rating . | . . . . Parts Repaired . | . . . . Time . | . . . . Parts Recycled . | . . . . Recycled Matter . | . . . . Retrieved Matter . | . . . . Retrieved Components . | . . . . Parts Scanalyzed . | . . . . Part Schematics Acquired . | . . . . Parts Damaged . | . . . . Bothacking | -11 -10 -10 -9 ------------ Run | Yrd Mat Min Mat Used RIF Installer . | . . . . Robots Hacked . | . . . . Non-combat . | . . . . Combat . | . . . . Robot Hacks Applied . | . . . . Relay Couplers Released . | . . . . Fabnet Peak Effective % . | . . . . Robots Rewired . | . . . . Allies Hacked . | . . . . Hacks Repelled . | . . . . Allies | -11 -10 -10 -9 -------- Run | Yrd Mat Min Mat Total Allies . | . . . . Largest Group . | . . . . Highest-Rated Group . | . . . . Highest-Rated Ally . | . . . . Total Orders . | . . . . Ally Attacks . | . . . . Total Damage . | . . . . Kills . | . . . . Allies Corrupted . | . . . . Allies Melted . | . . . . Intel | -11 -10 -10 -9 ------- Run | Yrd Mat Min Mat Robot Analysis Total 1 | . 1 . . Derelict Logs Recovered 2 | . . 2 . Drone Launches . | . . . . Drone Recoveries . | . . . . Exploration | -11 -10 -10 -9 ------------- Run | Yrd Mat Min Mat Turns Passed 1488 | 68 653 694 73 Spaces Moved 1282 | 46 330 753 153 Core 15 | 15 . . . Treads 517 | 31 330 156 . Legs . | . . . . Wheels . | . . . . Hover . | . . . . Flight 750 | . . 597 153 Fastest Speed 34 | 50 160 34 34 Average Speed 85 | 124 160 60 34 Slowest Speed 160 | 160 160 160 34 Overloaded Moves . | . . . . Propulsion Burnouts . | . . . . Robots Hopped 3 | . . 2 1 Cave-ins Triggered . | . . . . Exploration Rate (%) 44 | 4 54 97 22 Regions Visited 3 Branch Regions 1 Pre-discovered Areas . | . . . . Known Exits Taken . | . . . . Unknown Exits Taken 3 | 1 1 1 . Scrap Searched 3 | . . 3 . Spaces Dug 2 | . 2 . . Terrain Destroyed 73 | . 48 25 . Melee . | . . . . Projectile . | . . . . AOE 73 | . 48 25 . Terrain Rammed . | . . . . Walls Destroyed . | . . . . Machines Disabled . | . . . . Actions | -11 -10 -10 -9 --------- Run | Yrd Mat Min Mat Total 1602 | 55 404 979 164 Wait 228 | . 24 201 3 Move 1273 | 45 329 748 151 Hop 3 | . . 2 1 Pick Up 15 | 4 7 3 1 Fast Attach 12 | 4 6 2 . Attach 9 | 2 1 4 2 Detach 5 | . . 4 1 Swap 6 | . 2 3 1 Drop 6 | . . 6 . Fire 41 | . 31 6 4 Melee 4 | . 4 . . Ram . | . . . . Kick . | . . . . Crush . | . . . . Escape Stasis . | . . . . Rewire . | . . . . Trap . | . . . . Miscellaneous . | . . . . Route ------- -11/Scrapyard -10/Materials (discovered 2 exits: *Mat / *Min) -10/Mines -9/Materials (discovered 3 exits: Mat / Min x2) History --------- Turn | Location | Event 5 | -11/Scrapyard | Discovered new exit (range 15) 69 | -11/Scrapyard | Entered Materials 229 | -10/Materials | Discovered new exit (range 10) 306 | -10/Materials | Build established: Mutant 376 | -10/Materials | Discovered new exit (range 14) 722 | -10/Materials | Entered Mines 734 | -10/Mines | Met a Derelict bent on vengeance 770 | -10/Mines | Learned location of 1 exit from Materials 851 | -10/Mines | Learned Materials security intel 968 | -10/Mines | Met a Derelict shopkeep closing up shop 1017 | -10/Mines | Discovered new exit (range 9) 1039 | -10/Mines | A weapon hastily lodged in a ceiling crevice suddenly fell to the ground 1416 | -10/Mines | Entered Materials 1416 | -9/Materials | Evolved 2 slots: Propulsion x1, Utility x1 1417 | -9/Materials | Identified exit to Materials 1437 | -9/Materials | Identified exit to Mines 1489 | -9/Materials | Self-destructed Last Messages --------------- >>Access(Branch) Found 2 branch access points: (50,49) Mines (61,75) Mines Map updated. 01444_ K-01 Serf collects debris. 01447_ O-16 Technician: "IFF HANDSHAKE FAILED. SECURING TERMINAL." 01447_ Connecting with Terminal... 01448_ K-01 Serf collects debris. 01452_ O-16 Technician uses terminal to summon reinforcements. 01452_ ALERT: Hostiles spotted, dispatching reinforcements to Terminal M001. 01452_ O-16 Technician locks terminal. 01454_ K-01 Serf collects debris. 01459_ O-16 Technician destroyed. 01460_ K-01 Serf collects debris. 01465_ Acquired Hacking Suite. 01487_ W-16 Scout sends out distress signal. Map ----- +----------------------------------------------------+ | ????????????????????????????????#######"T"###? | | ????????????????????????????????# #? | | ????????????????????????????????# #? | | ????????????????????????????????+ #? | | ????????????????????????????????# !! #? | | ????????????????????????????????# !] #? | | ????????????????????????????????# ! #? | | ????????????????????????????????# #? | | ????????????????????????????????# #? | | ????????????????????????????????# """ #? | | ?????????????????????????????#### """ #? | | ?????????????????????????????# ## """ #? | | ?????????????????????????????# ## #? | | ?????????????????????????????# ## #? | | ?????????????????????????????# ## ##### #? | | ?????????????????????????????# ## #???# #? | | ?????????????????????????????# ## #???# #? | | ?????????????????????????????# ##+##### #? | | ?????????????????????????????# # [ # #? | | ?????????????????????????????# # "" # #? | | ?????????????????????????????# # "T # #? | | ????????####+######+########## + "" / + #? | | ??????? # # #? | | ??????? # # #? | | ??????? ######## #? | | ??????????????###### ##@ ##???????# #? | | ???????????????????# ## #????????# #? | | ???????????????????# ##!!!!==#????????# #? | | ???????????????????# ##!!!!==#????????# #? | | ???????????????????# #########????????# #? | | ???????????????????# #????????????????# #? | | ???????????????????# #????????????????# #? | | ???????????????????# #????????????????# #? | | ???????????????????# #????????????????# #? | | ???????????????????# #????????????????# #? | | ???????????????????# #????????????????# #? | | ???????????????????# #????????????????# #? | | ???????????????????# #????????????????# #? | | ???????????????????# #??????????????### #? | | ???????????????????# ########???????# #? | | ???????????????????# # #???????# #? | | ???????????????????# # """ ##+###### #? | | ???????????????????# + """ + #? | | ???????????????????# # """ ## #? | | ???????????????????# # ## "" #? | | ????????????+####### # [ ## "T #? | | ????????? ####+#### "" #? | | ????????? == #? | | ????????? ##+##### == #? | | ????????????############ [ # ==* == #? | +----------------------------------------------------+ Best States ------------- Heat Dissipation 39 Energy Generation 10 Energy Capacity 250 Matter Stores 300 Matter Capacity 300 Sight Range 16 Terrain Scan Density 10 Additional Mass Support 9 Evasion (%) 63 Recoil Reduction 2 Item Schematics ----------------- None Robot Schematics ------------------ None Fabricated ------------ Nothing Alien Tech Used ----------------- None Achievements -------------- None Challenges ------------ None Game ------ Seed GuidanceAuthchipSuit Manual? 0 Play Time 00:15:24 Cumulative 15.0 hours Start 2025.02.28 @ 10:57:36 End 2025.03.02 @ 22:03:26 Sessions 3 Manual Loads 0 Difficulty Rogue Special Mode None Game No. 17 Rogue 15 Adventurer 2 Explorer 0 Win Type - Total 0 Types 0/0/0/0/0/0/0/0/0 Lore% 9 Gallery% 19 Achievement% 20 Wizard Run 0 Options --------- Layout 2 ASCII 0 Keyboard 0 Movement Mouse Keybinds 0 Fullscreen 1 Font 32/SmallcapsGlow Map View 50x44 Zoom Use 0% Tactical HUD 1 Map Filters NONE Filters NONE Steam 1 RUN: e3aa27f5-23a9-4693-bf0b-e4fca2c6523f